bitfinex-derivatives/quotes_SOLF0:USTF0_20260129
["timestamp","ask_amount","ask_price","bid_price","bid_amount"]
[1769728568384,26.51835776,117.33,117.29,340.22]
[1769728568585,19.65086706,117.33,117.29,340.22]
[1769728569687,11.96756706,117.31,117.26,11.91614786]
[1769728569893,6.86495325,117.3,117.26,11.91614786]
[1769728570085,11.96756706,117.31,117.26,11.91614786]
[1769728570388,7.6853,117.3,117.26,11.91614786]
[1769728578801,19.65286706,117.3,117.26,11.91614786]
[1769728579894,19.65286706,117.3,117.24,352.15614786]
[1769728580393,19.65286706,117.3,117.25,11.91614786]
[1769728582903,7.686,117.29,117.25,11.91614786]
[1769728583295,11.96756706,117.29,117.25,11.91614786]
[1769728584400,7.6866,117.28,117.25,11.91614786]
[1769728587202,20.30201713,117.28,117.24,340.24]
[1769728587793,20.30201713,117.28,117.24,352.34336636]
[1769728589802,20.30201713,117.28,117.24,12.10336636]
[1769728589998,20.30201713,117.28,117.22,12.10336636]
[1769728590202,20.30201713,117.28,117.23,12.10336636]
[1769728602816,12.61541713,117.28,117.23,12.10336636]
[1769728609627,7.686,117.29,117.23,12.10336636]
[1769728610023,19.72535348,117.29,117.23,12.10336636]
[1769728613232,6.88804497,117.28,117.23,12.10336636]
[1769728613442,12.03935348,117.28,117.23,12.10336636]
[1769728618742,13.00456147,117.3,117.24,12.9787102]
[1769728618939,13.00456147,117.32,117.24,12.9787102]
[1769728619239,6.89569171,117.31,117.24,12.9787102]
[1769728619440,6.89569171,117.3,117.24,12.9787102]
[1769728619741,13.00456147,117.32,117.24,12.9787102]
[1769728619941,6.89532627,117.31,117.24,12.9787102]
[1769728620141,6.89532627,117.3,117.24,12.9787102]
[1769728620337,7.6847,117.31,117.26,12.9787102]
[1769728620538,6.8952919,117.3,117.26,12.9787102]
[1769728620738,7.6847,117.31,117.26,12.9787102]
[1769728624244,20.68856147,117.32,117.26,12.9787102]
[1769728624843,20.68856147,117.32,117.26,20.6665102]
[1769728626941,13.00456147,117.31,117.26,20.6665102]
[1769728628937,20.68796147,117.33,117.27,20.6659102]
[1769728629142,7.94601944,117.36,117.28,12.9787102]
[1769728629341,19.88629793,117.35,117.28,12.9787102]
[1769728629641,13.00456147,117.35,117.28,12.9787102]
[1769728630443,20.68656147,117.35,117.29,20.6645102]
[1769728631044,13.00456147,117.34,117.29,20.6645102]
[1769728631348,20.68726147,117.34,117.29,12.9787102]
[1769728634850,13.00456147,117.34,117.29,20.6646102]
[1769728643154,13.00456147,117.33,117.28,7.6865]
[1769728643356,13.00456147,117.33,117.27,12.9787102]
[1769728643649,13.00456147,117.32,117.27,12.9787102]
[1769728644757,13.00456147,117.32,117.27,20.6658102]
[1769728645558,13.00456147,117.32,117.27,19.2058102]
[1769728646856,12.60358359,117.34,117.28,7.6865]
[1769728647461,12.60358359,117.34,117.29,7.6857]
[1769728647660,12.60358359,117.34,117.29,20.69179149]
[1769728649056,12.60358359,117.36,117.29,13.00609149]
[1769728649761,12.60358359,117.36,117.27,119.575]
[1769728649762,12.60358359,117.36,117.31,7.6844]
[1769728657471,12.60358359,117.36,117.32,7.6839]
[1769728660871,20.40589915,117.35,117.32,7.6839]
[1769728661072,13.53403363,117.35,117.32,7.6839]
[1769728661272,13.53403363,117.35,117.3,12.50275283]
[1769728661273,6.8741047,117.34,117.31,7.6845]
[1769728661465,13.53403363,117.35,117.31,7.6845]
[1769728661666,6.87426759,117.34,117.31,7.6845]
[1769728661863,13.53403363,117.35,117.31,7.6845]
[1769728662266,6.8777753,117.34,117.31,7.6845]
[1769728662468,13.53403363,117.35,117.31,7.6845]
[1769728663263,6.88190029,117.34,117.31,7.6845]
[1769728663468,13.53403363,117.35,117.31,7.6845]
[1769728663668,6.88190029,117.34,117.31,7.6845]
[1769728663876,13.53403363,117.35,117.31,7.6845]
[1769728664171,13.53403363,117.35,117.32,7.6839]
[1769728666571,7.94601944,117.38,117.33,12.50275283]
[1769728666871,13.53403363,117.39,117.34,12.50275283]
[1769728667076,6.88554034,117.38,117.34,12.50275283]
[1769728667268,13.53403363,117.39,117.34,12.50275283]
[1769728668277,13.53403363,117.39,117.34,20.18525283]
[1769728670576,21.21343363,117.39,117.34,12.50275283]
[1769728671281,13.53403363,117.39,117.34,12.50275283]
[1769728677290,21.21343363,117.39,117.33,7.6832]
[1769728677482,14.12279238,117.37,117.33,7.6832]
[1769728677885,14.12279238,117.37,117.32,13.72954803]
[1769728678486,14.12279238,117.37,117.32,21.41314803]
[1769728685195,14.12279238,117.37,117.31,331.0045]
[1769728685784,14.12279238,117.37,117.31,344.73404803]
[1769728687295,14.12279238,117.37,117.32,7.6839]
[1769728688097,20.94797735,117.36,117.32,7.6839]
[1769728688397,14.12279238,117.36,117.31,21.41404803]
[1769728694295,14.12279238,117.36,117.32,21.41344803]
[1769728694496,21.80349238,117.37,117.32,21.41344803]
[1769728695403,6.83246215,117.36,117.32,21.41344803]
[1769728695605,21.80349238,117.37,117.32,21.41344803]
[1769728695804,6.83245248,117.36,117.32,21.41344803]
[1769728696005,21.80349238,117.37,117.32,21.41344803]
[1769728696305,6.83257714,117.36,117.32,21.41344803]
[1769728696507,21.80349238,117.37,117.32,21.41344803]
[1769728696705,6.83273589,117.36,117.32,21.41344803]
[1769728697014,21.80349238,117.37,117.32,21.41344803]
[1769728697302,6.8326756,117.36,117.32,21.41344803]
[1769728697507,21.80349238,117.37,117.32,21.41344803]
[1769728697707,6.83293006,117.36,117.32,21.41344803]
[1769728697908,7.6807,117.37,117.33,13.72954803]
[1769728698204,21.80349238,117.37,117.33,13.72954803]
[1769728700608,21.80349238,117.37,117.32,7.6839]
[1769728700910,21.80349238,117.37,117.32,21.41344803]
[1769728701708,14.12279238,117.37,117.32,21.41344803]
[1769728702106,14.12279238,117.37,117.33,7.6832]
[1769728702309,14.12279238,117.38,117.33,21.41274803]
[1769728702508,6.83480885,117.37,117.33,21.41274803]
[1769728702702,14.12279238,117.38,117.33,21.41274803]
[1769728702902,6.83482198,117.37,117.33,21.41274803]
[1769728703103,14.12279238,117.38,117.33,21.41274803]
[1769728703304,6.83510632,117.37,117.33,21.41274803]
[1769728703504,14.12279238,117.38,117.33,21.41274803]
[1769728703705,6.83513364,117.37,117.33,21.41274803]
[1769728703906,14.12279238,117.38,117.33,21.41274803]
[1769728704103,6.83507062,117.37,117.33,21.41274803]
[1769728704412,14.12279238,117.38,117.33,21.41274803]
[1769728704712,6.83543951,117.37,117.33,21.41274803]
[1769728705009,14.12279238,117.38,117.33,21.41274803]
[1769728705211,6.83552013,117.37,117.33,21.41274803]
[1769728705513,14.12279238,117.38,117.34,15.32409763]
[1769728706826,14.12279238,117.38,117.34,23.00659763]
[1769728707915,6.85353637,117.37,117.34,23.00659763]
[1769728708117,14.12279238,117.38,117.34,23.00659763]
[1769728708315,6.85435394,117.37,117.34,23.00659763]
[1769728708515,248.833042,117.4,117.35,15.32409763]
[1769728708708,21.30351085,117.39,117.35,15.32409763]
[1769728708913,6.85448376,117.38,117.35,15.32409763]
[1769728709107,14.44902709,117.39,117.35,15.32409763]
[1769728709313,9.688e-05,117.38,117.36,7.6813]
[1769728709517,14.44902709,117.41,117.36,7.6813]
[1769728712730,14.44902709,117.41,117.37,7.6806]
[1769728712935,14.44902709,117.41,117.35,15.32409763]
[1769728713725,14.44902709,117.41,117.37,7.6806]
[1769728714725,14.44902709,117.41,117.34,119.5062]
[1769728715824,14.44902709,117.41,117.36,7.6808]
[1769728716026,14.44902709,117.41,117.34,134.46778288]
[1769728716729,14.95809558,117.4,117.34,134.46778288]
[1769728717334,14.95809558,117.4,117.36,7.6808]
[1769728718731,14.95809558,117.4,117.35,7.6819]
[1769728719931,14.95809558,117.39,117.35,7.6819]
[1769728721433,6.82484156,117.38,117.35,7.6819]
[1769728721634,22.89668318,117.42,117.36,14.96158288]
[1769728722029,14.95809558,117.41,117.36,14.96158288]
[1769728722831,22.63619558,117.41,117.36,14.96158288]
[1769728726441,14.95809558,117.41,117.36,14.96158288]
[1769728726633,30.57408318,117.43,117.37,14.96158288]
[1769728726834,22.63549558,117.43,117.37,14.96158288]
[1769728728344,22.63549558,117.43,117.37,22.64208288]
[1769728732944,14.95809558,117.43,117.37,22.64208288]
[1769728733540,6.81594863,117.42,117.37,22.64208288]
[1769728733741,6.81594863,117.41,117.38,7.6799]
[1769728733944,14.95809558,117.43,117.38,7.6799]
[1769728734146,6.81649041,117.42,117.38,7.6799]
[1769728734339,6.81649041,117.41,117.38,7.6799]
[1769728734537,14.95809558,117.43,117.38,7.6799]
[1769728734741,6.8164311,117.42,117.38,7.6799]
[1769728735041,6.8164311,117.41,117.38,7.6799]
[1769728735341,14.95809558,117.43,117.38,7.6799]
[1769728735643,6.81652382,117.42,117.38,7.6799]
[1769728735842,6.81652382,117.41,117.38,7.6799]
[1769728736043,14.95809558,117.43,117.38,7.6799]
[1769728736244,6.81652382,117.42,117.38,7.6799]
[1769728736548,6.81652382,117.41,117.38,7.6799]
[1769728736743,14.95809558,117.43,117.38,7.6799]
[1769728736943,6.81684012,117.42,117.38,7.6799]
[1769728737248,14.95809558,117.43,117.38,7.6799]
[1769728737249,6.81684012,117.41,117.38,7.6799]
[1769728737450,14.95809558,117.43,117.38,7.6799]
[1769728737747,6.81718846,117.42,117.38,7.6799]
[1769728737948,6.81718846,117.41,117.38,7.6799]
[1769728738248,14.95809558,117.43,117.38,7.6799]
[1769728738443,6.81612184,117.42,117.38,7.6799]
[1769728738638,6.81612184,117.41,117.38,7.6799]
[1769728738841,14.84458186,117.42,117.36,7.6807]
[1769728739049,21.65989101,117.41,117.35,14.67525596]
[1769728739246,6.81530915,117.4,117.35,14.67525596]
[1769728739447,14.84458186,117.41,117.35,14.67525596]
[1769728739647,6.81628489,117.4,117.35,14.67525596]
[1769728739945,14.84458186,117.41,117.35,14.67525596]
[1769728740249,6.81628489,117.4,117.35,14.67525596]
[1769728740449,14.84458186,117.41,117.37,7.6805]
[1769728740743,6.81725726,117.4,117.37,7.6805]
[1769728740947,14.84458186,117.41,117.37,7.6805]
[1769728741150,6.81719538,117.4,117.37,7.6805]
[1769728741351,14.84458186,117.41,117.37,7.6805]
[1769728741554,6.81751848,117.4,117.37,7.6805]
[1769728741746,14.84458186,117.41,117.37,7.6805]
[1769728741947,6.81751153,117.4,117.37,7.6805]
[1769728742148,14.84458186,117.41,117.37,7.6805]
[1769728742450,6.81840348,117.4,117.37,7.6805]
[1769728742752,14.84458186,117.41,117.37,7.6805]
[1769728742953,6.81840348,117.4,117.37,7.6805]
[1769728743153,14.84458186,117.41,117.37,7.6805]
[1769728743453,6.81885764,117.4,117.37,7.6805]
[1769728743654,14.84458186,117.41,117.37,7.6805]
[1769728743849,6.8188646,117.4,117.37,7.6805]
[1769728744153,14.84458186,117.41,117.37,7.6805]
[1769728744344,6.81937513,117.4,117.36,14.67525596]
[1769728744546,6.81937513,117.39,117.36,14.67525596]
[1769728744747,14.84458186,117.41,117.36,14.67525596]
[1769728744947,6.81882248,117.4,117.36,14.67525596]
[1769728745148,6.81882248,117.39,117.36,14.67525596]
[1769728745350,14.84458186,117.41,117.36,14.67525596]
[1769728745650,6.81957033,117.4,117.36,14.67525596]
[1769728745850,6.81957033,117.39,117.36,14.67525596]
[1769728746046,14.84458186,117.41,117.36,14.67525596]
[1769728746252,6.81997272,117.4,117.36,14.67525596]
[1769728746454,14.84458186,117.41,117.36,14.67525596]
[1769728746654,6.82058412,117.4,117.36,14.67525596]
[1769728746854,14.84458186,117.41,117.36,14.67525596]
[1769728747056,6.82059108,117.4,117.36,14.67525596]
[1769728747247,14.84458186,117.41,117.36,22.35645596]
[1769728747448,6.82158103,117.4,117.36,22.35645596]
[1769728747644,14.84458186,117.41,117.37,14.67525596]
[1769728747955,14.84458186,117.42,117.37,22.35575596]
[1769728748155,6.82217359,117.41,117.37,22.35575596]
[1769728748457,14.84458186,117.42,117.37,22.35575596]
[1769728748652,6.82267387,117.41,117.37,22.35575596]
[1769728748952,14.84458186,117.42,117.37,22.35575596]
[1769728749152,6.82267387,117.41,117.37,22.35575596]
[1769728749349,14.84458186,117.42,117.37,22.35575596]
[1769728749551,6.82324572,117.41,117.37,22.35575596]
[1769728749852,14.84458186,117.42,117.37,22.35575596]
[1769728750053,6.82324572,117.41,117.37,22.35575596]
[1769728750353,14.84458186,117.42,117.37,22.35575596]
[1769728750555,6.8239499,117.41,117.37,22.35575596]
[1769728750852,14.84458186,117.42,117.37,22.35575596]
[1769728751053,6.8239499,117.41,117.37,22.35575596]
[1769728751255,14.84458186,117.42,117.37,22.35575596]
[1769728751446,6.82443753,117.41,117.37,22.35575596]
[1769728751651,14.84458186,117.42,117.37,22.35575596]
[1769728751852,6.82445948,117.41,117.37,22.35575596]
[1769728752055,14.84458186,117.42,117.37,22.35575596]
[1769728752353,6.82445948,117.41,117.37,22.35575596]
[1769728752656,14.84458186,117.42,117.37,22.35575596]
[1769728752859,6.82470591,117.41,117.37,22.35575596]
[1769728753154,14.84458186,117.42,117.37,22.35575596]
[1769728753354,6.82507476,117.41,117.37,22.35575596]
[1769728753555,14.84458186,117.42,117.37,22.35575596]
[1769728753754,6.82507476,117.41,117.37,22.35575596]
[1769728753955,14.84458186,117.42,117.37,22.35575596]
[1769728754156,6.82507919,117.41,117.37,22.35575596]
[1769728754358,14.84458186,117.42,117.37,22.35575596]
[1769728754557,6.82528859,117.41,117.37,22.35575596]
[1769728754758,14.84458186,117.42,117.37,22.35575596]
[1769728754960,6.82511744,117.41,117.37,22.35575596]
[1769728755259,14.84458186,117.42,117.37,22.35575596]
[1769728755460,6.82496932,117.41,117.37,22.35575596]
[1769728755655,14.84458186,117.42,117.37,22.35575596]
[1769728755956,6.82490742,117.41,117.37,22.35575596]
[1769728756254,14.84458186,117.42,117.37,22.35575596]
[1769728756452,6.82482055,117.41,117.37,22.35575596]
[1769728756758,14.84458186,117.42,117.37,22.35575596]
[1769728756959,6.82482055,117.41,117.37,22.35575596]
[1769728757158,14.84458186,117.42,117.37,22.35575596]
[1769728757360,6.82473462,117.41,117.37,7.6805]
[1769728757557,22.51998186,117.45,117.4,14.67525596]
[1769728759470,14.84458186,117.44,117.4,14.67525596]
[1769728761864,14.84458186,117.44,117.4,22.35395596]
[1769728763666,22.51948186,117.46,117.41,14.67525596]
[1769728763861,14.84458186,117.46,117.41,22.35305596]
[1769728765372,14.84458186,117.45,117.41,22.35305596]
[1769728768462,15.88377295,117.47,117.43,15.67148916]
[1769728770472,15.88377295,117.47,117.43,23.34818916]
[1769728771966,15.88377295,117.47,117.43,7.6767]
[1769728772869,15.88377295,117.47,117.43,23.34818916]
[1769728773775,15.88377295,117.47,117.41,23.34888916]
[1769728774372,15.88377295,117.47,117.42,16.06145382]
[1769728774572,15.88377295,117.47,117.41,7.6774]
[1769728774867,17.08004679,117.46,117.41,16.06145382]
[1769728775073,17.08004679,117.46,117.38,16.06145382]
[1769728775871,17.08004679,117.44,117.38,16.06145382]
[1769728776474,24.75624679,117.44,117.38,16.06145382]
[1769728777574,17.08004679,117.43,117.38,16.06145382]
[1769728779375,7.6775,117.42,117.38,16.06145382]
[1769728787882,7.6767,117.44,117.38,16.06145382]
[1769728789085,7.6767,117.44,117.39,16.06145382]
[1769728790083,7.677,117.43,117.39,16.06145382]
[1769728793774,7.6774,117.42,117.39,16.06145382]
[1769728796279,7.6781,117.41,117.37,356.61024926]
[1769728797885,25.37860527,117.41,117.37,16.63024926]
[1769728801886,25.37860527,117.41,117.35,24.31174926]
[1769728802187,25.37860527,117.41,117.36,16.63024926]
[1769728819306,6.79322858,117.4,117.36,16.63024926]
[1769728819599,25.37860527,117.41,117.36,16.63024926]
[1769728819800,6.79329629,117.4,117.36,16.63024926]
[1769728820099,25.37860527,117.41,117.36,16.63024926]
[1769728820302,6.79445622,117.4,117.36,16.63024926]
[1769728820491,25.37860527,117.41,117.36,16.63024926]
[1769728820695,6.79452792,117.4,117.36,16.63024926]
[1769728820902,25.37860527,117.41,117.36,16.63024926]
[1769728821103,6.79452792,117.4,117.36,16.63024926]
[1769728821409,25.37860527,117.41,117.36,16.63024926]
[1769728821611,6.79501267,117.4,117.36,16.63024926]
[1769728821910,25.37860527,117.41,117.36,16.63024926]
[1769728822207,6.79501267,117.4,117.36,16.63024926]
[1769728822406,24.49446741,117.39,117.34,24.31274926]
[1769728822608,6.79482097,117.38,117.34,16.63024926]
[1769728822809,17.70050527,117.39,117.34,16.63024926]
[1769728823004,6.7947468,117.38,117.34,16.63024926]
[1769728823211,25.38040527,117.39,117.34,16.63024926]
[1769728823409,6.79305916,117.38,117.34,16.63024926]
[1769728823606,25.38040527,117.39,117.34,16.63024926]
[1769728823807,6.79305916,117.38,117.34,16.63024926]
[1769728824008,25.38040527,117.39,117.34,16.63024926]
[1769728824208,6.79300097,117.38,117.34,16.63024926]
[1769728824408,25.38040527,117.39,117.34,16.63024926]
[1769728824613,6.79196276,117.38,117.34,16.63024926]
[1769728824810,25.38040527,117.39,117.34,16.63024926]
[1769728824999,6.79298046,117.38,117.34,16.63024926]
[1769728825204,25.38040527,117.39,117.34,16.63024926]
[1769728825414,6.79162593,117.38,117.34,16.63024926]
[1769728825610,25.38040527,117.39,117.34,16.63024926]
[1769728825814,6.79161349,117.38,117.34,16.63024926]
[1769728826015,25.38040527,117.39,117.34,16.63024926]
[1769728826212,6.79161349,117.38,117.34,16.63024926]
[1769728826511,25.38040527,117.39,117.34,16.63024926]
[1769728826910,6.79215378,117.38,117.34,16.63024926]
[1769728827109,25.38040527,117.39,117.34,16.63024926]
[1769728827412,6.7919116,117.38,117.34,16.63024926]
[1769728827712,25.38040527,117.39,117.34,16.63024926]
[1769728827910,6.79107795,117.38,117.34,16.63024926]
[1769728828112,25.38040527,117.39,117.34,16.63024926]
[1769728828304,6.79386118,117.38,117.34,16.63024926]
[1769728828614,25.38040527,117.39,117.34,16.63024926]
[1769728828815,6.79302898,117.38,117.34,16.63024926]
[1769728829013,7.6811,117.37,117.34,16.63024926]
[1769728829209,17.70050527,117.39,117.34,16.63024926]
[1769728829412,6.79166355,117.38,117.34,16.63024926]
[1769728829606,17.70050527,117.39,117.34,16.63024926]
[1769728829810,6.79166364,117.38,117.34,16.63024926]
[1769728830017,17.70050527,117.39,117.34,16.63024926]
[1769728830211,6.79166364,117.38,117.34,16.63024926]
[1769728830415,25.38000527,117.39,117.34,16.63024926]
[1769728830617,6.79067955,117.38,117.34,16.63024926]
[1769728830920,25.38000527,117.39,117.34,16.63024926]
[1769728831121,6.79067955,117.38,117.34,16.63024926]
[1769728831417,25.38000527,117.39,117.34,16.63024926]
[1769728831608,6.78969525,117.38,117.34,16.63024926]
[1769728831809,25.38000527,117.39,117.34,16.63024926]
[1769728832019,6.78969525,117.38,117.34,16.63024926]
[1769728832213,25.38000527,117.39,117.34,16.63024926]
[1769728832519,6.78887156,117.38,117.34,16.63024926]
[1769728832816,25.38000527,117.39,117.34,16.63024926]
[1769728833017,6.78887156,117.38,117.34,16.63024926]
[1769728833217,25.38000527,117.39,117.34,16.63024926]
[1769728833515,6.78904954,117.38,117.34,16.63024926]
[1769728833715,25.38000527,117.39,117.34,16.63024926]
[1769728833916,6.78904954,117.38,117.34,16.63024926]
[1769728834117,25.38000527,117.39,117.34,16.63024926]
[1769728834317,6.79060255,117.38,117.34,16.63024926]
[1769728834521,25.38000527,117.39,117.34,16.63024926]
[1769728834816,6.78966559,117.38,117.34,16.63024926]
[1769728835017,25.38000527,117.39,117.34,16.63024926]
[1769728835212,6.78966559,117.38,117.34,16.63024926]
[1769728835414,25.38000527,117.39,117.34,16.63024926]
[1769728835718,6.79042936,117.38,117.34,16.63024926]
[1769728836017,25.38000527,117.39,117.34,16.63024926]
[1769728836217,6.79042936,117.38,117.34,16.63024926]
[1769728836518,25.38000527,117.39,117.34,16.63024926]
[1769728836719,6.7907087,117.38,117.34,16.63024926]
[1769728837019,25.38000527,117.39,117.34,16.63024926]
[1769728838320,6.79228026,117.38,117.34,16.63024926]
[1769728838620,25.38000527,117.39,117.34,16.63024926]
[1769728838919,6.79220507,117.38,117.34,16.63024926]
[1769728839119,25.38000527,117.39,117.34,16.63024926]
[1769728839313,6.79315305,117.38,117.34,16.63024926]
[1769728839513,25.38000527,117.39,117.34,16.63024926]
[1769728839813,6.79311009,117.38,117.34,16.63024926]
[1769728840012,25.38000527,117.39,117.34,16.63024926]
[1769728840221,18.50259428,117.37,117.32,17.09103393]
[1769728842623,18.50259428,117.37,117.33,17.09103393]
[1769728850129,7.6802,117.38,117.33,24.77423393]
[1769728850425,18.50259428,117.39,117.34,17.09103393]
[1769728852329,18.50259428,117.39,117.34,24.77363393]
[1769728853232,6.79373913,117.38,117.34,24.77363393]
[1769728853432,18.50259428,117.39,117.34,24.77363393]
[1769728853630,6.79423477,117.38,117.34,24.77363393]
[1769728853831,18.50259428,117.39,117.34,24.77363393]
[1769728856433,6.79615404,117.38,117.34,24.77363393]
[1769728856630,18.50259428,117.39,117.34,24.77363393]
[1769728856834,6.79661846,117.38,117.35,7.6818]
[1769728857034,18.50259428,117.39,117.35,7.6818]
[1769728857235,6.79615404,117.38,117.35,7.6818]
[1769728857435,18.50259428,117.39,117.35,7.6818]
[1769728857634,6.79688703,117.38,117.35,7.6818]
[1769728857836,18.50259428,117.39,117.35,7.6818]
[1769728858030,6.79688703,117.38,117.35,7.6818]
[1769728858232,18.50259428,117.39,117.35,7.6818]
[1769728858432,6.80695532,117.38,117.35,7.6818]
[1769728858632,18.50259428,117.39,117.35,7.6818]
[1769728858932,6.80795409,117.38,117.35,7.6818]
[1769728859230,18.50259428,117.39,117.35,7.6818]
[1769728859423,6.8088224,117.38,117.36,7.681]
[1769728859629,18.48758388,117.41,117.36,7.681]
[1769728859829,6.80925025,117.4,117.36,7.681]
[1769728860029,5.025e-05,117.39,117.37,7.6807]
[1769728860235,18.48758388,117.41,117.37,25.34604632]
[1769728860735,18.48758388,117.43,117.37,17.66534632]
[1769728862141,18.48758388,117.43,117.39,7.6788]
[1769728862841,18.48758388,117.43,117.4,7.6785]
[1769728874754,18.48758388,117.43,117.38,25.34514632]
[1769728877960,26.16308388,117.45,117.39,17.66534632]
[1769728878151,6.76080316,117.44,117.39,17.66534632]
[1769728878353,26.16308388,117.45,117.39,17.66534632]
[1769728878559,6.76057395,117.44,117.39,17.66534632]
[1769728878759,26.16308388,117.45,117.39,17.66534632]
[1769728878952,6.76057395,117.44,117.39,17.66534632]
[1769728879152,26.16308388,117.45,117.39,17.66534632]
[1769728879353,6.76047124,117.44,117.39,17.66534632]
[1769728879553,18.48758388,117.44,117.39,17.66534632]
[1769728882464,18.48758388,117.44,117.39,25.34454632]
[1769728883556,18.48758388,117.44,117.4,7.6786]
[1769728884263,18.48758388,117.44,117.4,25.34394632]
[1769728884462,26.16248388,117.46,117.4,25.34394632]
[1769728884865,18.48758388,117.45,117.41,7.678]
[1769728894974,18.48758388,117.45,117.4,25.34394632]
[1769728901669,18.48758388,117.45,117.4,17.66534632]
[1769728904277,6.79694933,117.44,117.4,17.66534632]
[1769728904579,26.16298388,117.45,117.4,17.66534632]
[1769728904777,6.79690165,117.44,117.4,17.66534632]
[1769728904968,26.16298388,117.45,117.4,17.66534632]
[1769728905173,6.79690165,117.44,117.4,17.66534632]
[1769728905472,19.12188551,117.44,117.39,26.58895245]
[1769728908779,26.79808551,117.44,117.39,26.58895245]
[1769728914190,7.6762,117.44,117.4,18.90965245]
[1769728914690,7.6756,117.45,117.4,18.90965245]
[1769728914988,26.79748551,117.45,117.4,18.90965245]
[1769728916391,6.79900224,117.44,117.4,18.90965245]
[1769728916591,7.6762,117.44,117.4,18.90965245]
[1769728921192,26.00510667,117.44,117.4,18.90965245]
[1769728925602,6.80723806,117.43,117.4,18.90965245]
[1769728925801,26.00510667,117.44,117.4,18.90965245]
[1769728925996,6.80723806,117.43,117.4,18.90965245]
[1769728926196,26.00510667,117.44,117.4,18.90965245]
[1769728926396,6.80718034,117.43,117.4,18.90965245]
[1769728926597,26.00510667,117.44,117.4,18.90965245]
[1769728926799,6.80836679,117.43,117.4,18.90965245]
[1769728926993,26.00510667,117.44,117.4,18.90965245]
[1769728927195,6.80836679,117.43,117.4,18.90965245]
[1769728927396,26.00510667,117.44,117.4,18.90965245]
[1769728927597,6.8100876,117.43,117.4,18.90965245]
[1769728927806,26.00510667,117.44,117.4,18.90965245]
[1769728928104,6.81063044,117.43,117.4,18.90965245]
[1769728928303,26.00510667,117.44,117.4,18.90965245]
[1769728928505,6.81321528,117.43,117.4,18.90965245]
[1769728928708,26.00510667,117.44,117.4,18.90965245]
[1769728929004,6.81275021,117.43,117.4,18.90965245]
[1769728929200,26.00510667,117.44,117.4,18.90965245]
[1769728929401,6.81278707,117.43,117.4,18.90965245]
[1769728929705,26.00510667,117.44,117.4,18.90965245]
[1769728929908,6.81366734,117.43,117.4,18.90965245]
[1769728930101,26.00510667,117.44,117.4,18.90965245]
[1769728930403,6.81366734,117.43,117.4,18.90965245]
[1769728930604,26.00510667,117.44,117.4,18.90965245]
[1769728930805,6.8162232,117.43,117.4,18.90965245]
[1769728931005,26.00510667,117.44,117.4,18.90965245]
[1769728931202,6.8162232,117.43,117.4,18.90965245]
[1769728931507,26.00510667,117.44,117.4,18.90965245]
[1769728931701,6.81621718,117.43,117.4,18.90965245]
[1769728931902,26.00510667,117.44,117.4,18.90965245]
[1769728932202,6.81953746,117.43,117.4,18.90965245]
[1769728932397,26.00510667,117.44,117.4,18.90965245]
[1769728932603,6.82009302,117.43,117.4,18.90965245]
[1769728932808,26.00510667,117.44,117.4,18.90965245]
[1769728933008,6.82033463,117.43,117.4,18.90965245]
[1769728933210,26.00510667,117.44,117.4,18.90965245]
[1769728933511,6.82098728,117.43,117.4,18.90965245]
[1769728933809,26.00510667,117.44,117.4,18.90965245]
[1769728934008,6.82100389,117.43,117.4,18.90965245]
[1769728934308,26.00510667,117.44,117.4,18.90965245]
[1769728934508,6.82100082,117.43,117.4,18.90965245]
[1769728934710,26.00510667,117.44,117.4,18.90965245]
[1769728934909,6.82100082,117.43,117.4,18.90965245]
[1769728935209,26.00510667,117.44,117.4,18.90965245]
[1769728935409,6.82097731,117.43,117.4,18.90965245]
[1769728935610,26.00510667,117.44,117.4,18.90965245]
[1769728935806,6.82097731,117.43,117.4,18.90965245]
[1769728936008,26.00510667,117.44,117.4,18.90965245]
[1769728936206,6.82097731,117.43,117.4,18.90965245]
[1769728936409,26.00510667,117.44,117.4,18.90965245]
[1769728936706,6.82097613,117.43,117.4,18.90965245]
[1769728936908,26.00510667,117.44,117.4,18.90965245]
[1769728937108,6.82097692,117.43,117.4,18.90965245]
[1769728937310,18.32890667,117.44,117.4,18.90965245]
[1769728937513,6.82097667,117.43,117.4,18.90965245]
[1769728937707,7.6756,117.45,117.4,26.58805245]
[1769728937910,6.82099558,117.44,117.41,19.61611968]
[1769728938110,33.95373311,117.46,117.41,19.61611968]
[1769728938307,6.82012072,117.45,117.41,19.61611968]
[1769728938508,6.82012072,117.44,117.41,19.61611968]
[1769728938702,18.32890667,117.46,117.41,19.61611968]
[1769728938907,6.82011869,117.45,117.41,19.61611968]
[1769728939214,6.82011869,117.44,117.41,19.61611968]
[1769728939402,18.32890667,117.46,117.41,27.29361968]
[1769728939608,6.81935852,117.45,117.41,27.29361968]
[1769728939808,6.81935852,117.44,117.41,27.29361968]
[1769728940009,18.32890667,117.46,117.41,27.29361968]
[1769728940310,6.8231763,117.45,117.41,27.29361968]
[1769728940510,6.8231763,117.44,117.41,27.29361968]
[1769728940812,18.32890667,117.46,117.41,27.29361968]